bitfinex/quotes_BTCUSD_20240803
["timestamp","ask_amount","ask_price","bid_price","bid_amount"]
[1722727167457,0.098711,60783.0,60782.0,0.001]
[1722727167699,0.46317389,60783.0,60776.0,0.001]
[1722727167907,0.098721,60777.0,60770.0,0.00958608]
[1722727168116,0.16575089,60776.0,60773.0,0.00958608]
[1722727168533,0.16575089,60776.0,60769.0,0.08291805]
[1722727168534,0.0934,60785.0,60776.0,0.00958608]
[1722727168742,0.16575089,60784.0,60776.0,0.00958608]
[1722727168979,0.16575089,60784.0,60769.0,0.08291805]
[1722727168980,0.00083,60783.0,60780.0,0.01]
[1722727169186,0.16575089,60782.0,60778.0,0.02958608]
[1722727169590,0.16575089,60782.0,60778.0,0.00958608]
[1722727169807,0.00083,60783.0,60782.0,0.02958608]
[1722727170758,0.00083,60783.0,60782.0,0.12829908]
[1722727170966,0.00083,60783.0,60782.0,0.52315108]
[1722727171162,0.00083,60783.0,60782.0,0.98632797]
[1722727171578,0.00083,60783.0,60782.0,0.98932797]
[1722727172168,0.00083,60783.0,60782.0,0.99932797]
[1722727172362,0.00083,60783.0,60782.0,1.21675397]
[1722727172567,0.2049,60821.0,60807.0,0.32560308]
[1722727172867,0.0934,60821.0,60807.0,0.52294808]
[1722727173477,0.0934,60821.0,60807.0,0.72029308]
[1722727174071,0.1115,60831.0,60807.0,0.72029308]
[1722727174072,0.1115,60831.0,60807.0,1.09404397]
[1722727174221,0.0934,60832.0,60807.0,1.19404397]
[1722727174553,0.0934,60832.0,60807.0,1.19104397]
[1722727175427,0.0934,60832.0,60807.0,1.18904397]
[1722727175634,0.0934,60832.0,60807.0,1.19904397]
[1722727175968,0.0934,60832.0,60807.0,1.19804397]
[1722727176170,0.0934,60832.0,60807.0,1.40938897]
[1722727176371,0.1,60859.0,60833.0,0.01]
[1722727176594,0.1,60859.0,60837.0,0.01]
[1722727176595,0.16575089,60839.0,60837.0,0.01]
[1722727176819,0.16575089,60839.0,60838.0,0.00157439]
[1722727177075,0.16575089,60839.0,60836.0,0.01]
[1722727177279,0.16575089,60839.0,60837.0,0.01]
[1722727177607,0.16575089,60839.0,60833.0,0.02]
[1722727177608,0.1758,60838.0,60833.0,0.001]
[1722727177812,0.295887,60834.0,60833.0,0.001]
[1722727178014,0.46163789,60834.0,60833.0,0.001]
[1722727178207,0.68189589,60834.0,60833.0,0.001]
[1722727179254,0.48205789,60834.0,60830.0,0.01]
[1722727179469,0.42446894,60831.0,60814.0,0.01]
[1722727179670,0.42446894,60831.0,60810.0,0.50750831]
[1722727179671,0.1758,60823.0,60810.0,0.50750831]
[1722727179840,0.16575089,60822.0,60814.0,0.01]
[1722727180056,0.16575089,60822.0,60821.0,0.01]
[1722727180237,0.16575089,60822.0,60814.0,0.01]
[1722727180422,0.16575089,60822.0,60812.0,0.01]
[1722727180625,0.098658,60817.0,60812.0,0.02]
[1722727180857,0.16575089,60816.0,60814.0,0.001]
[1722727181182,0.16575089,60816.0,60815.0,0.01]
[1722727181389,0.16575089,60816.0,60811.0,0.03]
[1722727181390,0.098662,60814.0,60811.0,0.03]
[1722727181605,0.36306689,60816.0,60810.0,0.01]
[1722727181606,0.19732,60815.0,60810.0,0.01]
[1722727181812,0.19732,60815.0,60810.0,0.02]
[1722727181813,0.16575089,60815.0,60810.0,0.02]
[1722727182027,0.16575089,60815.0,60812.0,0.01]
[1722727182230,0.16575089,60815.0,60810.0,0.02]
[1722727182231,0.098664,60813.0,60810.0,0.01]
[1722727182439,0.36307189,60815.0,60810.0,0.03]
[1722727182646,0.098663,60813.0,60810.0,0.01]
[1722727182864,0.16575089,60815.0,60813.0,0.0023274]
[1722727183086,0.16342349,60815.0,60814.0,0.001]
[1722727183293,0.16342349,60815.0,60814.0,0.01]
[1722727183497,0.26208349,60815.0,60813.0,0.0123274]
[1722727183629,0.17442349,60815.0,60814.0,0.011]
[1722727183838,0.17442349,60815.0,60814.0,0.001]
[1722727183839,0.011,60815.0,60814.0,0.001]
[1722727184039,0.011,60815.0,60814.0,0.031]
[1722727184429,0.011,60815.0,60814.0,0.03]
[1722727184632,0.021,60815.0,60814.0,0.031]
[1722727184784,0.032,60815.0,60814.0,0.031]
[1722727186123,0.01,60815.0,60814.0,0.031]
[1722727186337,0.01,60815.0,60814.0,0.011]
[1722727186580,0.01,60815.0,60814.0,0.031]
[1722727186762,0.02,60815.0,60814.0,0.011]
[1722727187173,0.02,60815.0,60814.0,0.031]
[1722727187582,0.02,60815.0,60814.0,0.001]
[1722727187782,0.315978,60815.0,60814.0,0.001]
[1722727188034,0.315978,60815.0,60797.0,0.306075]
[1722727188035,0.098717,60780.0,60770.0,0.00157439]
[1722727188239,0.0959,60782.0,60766.0,0.49750831]
[1722727188240,0.1758,60772.0,60766.0,0.49750831]
[1722727188441,0.1758,60767.0,60742.0,0.0932]
[1722727188644,0.1758,60753.0,60748.0,0.49750831]
[1722727188849,0.1758,60753.0,60738.0,0.1244]
[1722727188850,0.1758,60760.0,60740.0,0.02]
[1722727189199,0.1758,60753.0,60738.0,0.02]
[1722727189421,0.1758,60753.0,60731.0,0.08291805]
[1722727189624,0.1758,60753.0,60728.0,0.19036]
[1722727189625,0.16575089,60752.0,60729.0,0.08291805]
[1722727189800,0.16575089,60752.0,60730.0,0.16575089]
[1722727190004,0.098779,60742.0,60730.0,0.16575089]
[1722727190230,0.098772,60746.0,60730.0,0.16575089]
[1722727190443,0.098771,60747.0,60732.0,0.098794]
[1722727190604,0.098773,60745.0,60731.0,0.099794]
[1722727190807,0.008,60753.0,60742.0,0.02]
[1722727191053,0.008,60753.0,60746.0,0.02]
[1722727191226,0.008,60753.0,60744.0,0.02]
[1722727191227,0.098764,60751.0,60744.0,0.02]
[1722727191406,0.014,60752.0,60750.0,0.01]
[1722727191589,0.014,60752.0,60751.0,0.02]
[1722727192644,0.207447,60776.0,60756.0,0.01]
[1722727192645,0.197497,60761.0,60756.0,0.01]
[1722727192896,0.098757,60755.0,60754.0,0.02]
[1722727193307,0.197505,60758.0,60751.0,0.001]
[1722727193515,0.01,60752.0,60751.0,0.001]
[1722727194099,0.09876,60753.0,60752.0,0.02]
[1722727194703,0.16575089,60758.0,60736.0,0.08291805]
[1722727194901,0.16575089,60758.0,60729.0,0.28051505]
[1722727194902,0.16575089,60757.0,60737.0,0.24866894]
[1722727195107,0.16575089,60757.0,60744.0,0.02]
[1722727195303,0.16575089,60757.0,60743.0,0.02]
[1722727195477,0.098762,60752.0,60751.0,0.002]
[1722727195684,0.296286,60752.0,60751.0,0.002]
[1722727196118,0.09877,60747.0,60746.0,0.02]
[1722727196521,0.17475089,60757.0,60744.0,0.001]
[1722727196522,0.197534,60749.0,60744.0,0.001]
[1722727196696,0.29632,60745.0,60744.0,0.001]
[1722727196898,0.19756,60741.0,60734.0,0.4684]
[1722727197202,0.197506,60758.0,60741.0,0.02]
[1722727197203,0.197556,60742.0,60741.0,0.02]
[1722727197403,0.16575089,60751.0,60730.0,0.26575089]
[1722727197635,0.29631,60747.0,60746.0,0.003]
[1722727197805,0.49385,60747.0,60746.0,0.003]
[1722727198034,0.098768,60748.0,60746.0,0.003]
[1722727198236,0.098767,60749.0,60746.0,0.003]
[1722727198442,0.200526,60752.0,60746.0,0.023]
[1722727198612,0.09877,60747.0,60746.0,0.023]
[1722727198819,0.09877,60747.0,60746.0,0.003]
[1722727199020,0.09877,60747.0,60746.0,0.005]
[1722727199573,0.09877,60747.0,60737.0,0.10207859]
[1722727199776,0.09877,60747.0,60746.0,0.002]
[1722727199939,0.197526,60752.0,60746.0,0.002]
[1722727199940,0.098763,60752.0,60750.0,0.02]
[1722727200144,0.1,60764.0,60746.0,0.002]
[1722727200341,0.29631,60747.0,60746.0,0.002]
[1722727200582,0.09876,60754.0,60746.0,0.005]
[1722727200786,0.075959,60776.0,60746.0,0.005]
[1722727200787,0.49750831,60773.0,60757.0,0.197507]
[1722727200998,0.49750831,60773.0,60771.0,0.02]
[1722727201358,0.49750831,60773.0,60757.0,0.197507]
[1722727201359,0.49750831,60773.0,60757.0,0.02]
[1722727201559,0.16575089,60772.0,60761.0,0.02]
[1722727201773,0.296236,60762.0,60761.0,0.02]
[1722727201981,0.16575089,60772.0,60762.0,0.02]
[1722727202176,0.16575089,60772.0,60768.0,0.01]
[1722727202177,0.296204,60769.0,60768.0,0.01]
[1722727202316,0.46195489,60769.0,60768.0,0.01]
[1722727202513,0.098747,60761.0,60760.0,0.02]
[1722727202715,0.098747,60761.0,60753.0,0.1]
[1722727202716,0.098758,60754.0,60753.0,0.02]
[1722727202913,0.16575089,60768.0,60760.0,0.02]
[1722727203182,0.197475,60767.0,60761.0,0.02]
[1722727203387,0.197475,60767.0,60750.0,0.0932]
[1722727203388,0.296242,60761.0,60760.0,0.02]
[1722727203589,0.098744,60763.0,60762.0,0.01]
[1722727203720,0.197501,60760.0,60753.0,0.02]
[1722727204085,0.197501,60760.0,60759.0,0.02]
[1722727204086,0.098749,60760.0,60759.0,0.02]
[1722727204496,0.003,60768.0,60750.0,0.0932]
[1722727204497,0.16531443,60818.0,60760.0,0.02]
[1722727204725,0.16531443,60818.0,60750.0,0.0932]
[1722727204726,0.1162,60761.0,60743.0,0.8838]
[1722727204855,0.197501,60759.0,60750.0,0.02]
[1722727205062,0.098759,60754.0,60750.0,0.01]
[1722727205262,0.197509,60757.0,60749.0,0.02]
[1722727205263,0.098755,60757.0,60749.0,0.02]
[1722727205533,0.08291805,60818.0,60763.0,0.01]
[1722727205534,0.1162,60771.0,60763.0,0.01]
[1722727205726,0.1162,60771.0,60762.0,0.003]
[1722727205727,0.49750831,60766.0,60762.0,0.003]
[1722727205923,0.16575089,60770.0,60762.0,0.003]
[1722727205924,0.098744,60763.0,60762.0,0.003]
[1722727206200,0.1162,60778.0,60769.0,0.01]
[1722727206403,0.1162,60778.0,60764.0,0.098742]
[1722727206404,0.1162,60778.0,60773.0,0.01]
[1722727206604,0.1162,60778.0,60774.0,0.01]
[1722727206810,0.02581604,60776.0,60774.0,0.01]
[1722727207016,0.16575089,60775.0,60765.0,0.00157439]
[1722727207227,0.098741,60765.0,60764.0,0.01]
[1722727207435,0.296223,60765.0,60764.0,0.01]
[1722727208051,0.098741,60765.0,60764.0,0.01]
[1722727208272,0.12455832,60765.0,60764.0,0.01]
[1722727208482,0.098741,60765.0,60764.0,0.01]
[1722727208687,0.002,60766.0,60764.0,0.01]
[1722727208893,0.296223,60765.0,60764.0,0.01]
[1722727209099,0.098749,60760.0,60759.0,0.02157439]
[1722727209300,0.100741,60765.0,60764.0,0.01]
[1722727209431,0.197485,60764.0,60759.0,0.02157439]
[1722727209627,0.098746,60762.0,60759.0,0.02157439]
[1722727209830,0.19749,60763.0,60759.0,0.02]
[1722727209831,0.098747,60761.0,60759.0,0.02]
[1722727210365,0.197483,60765.0,60763.0,0.01]
[1722727210711,0.197483,60765.0,60764.0,0.02]
[1722727210712,0.002,60765.0,60764.0,0.02]
[1722727211342,0.002,60765.0,60764.0,0.02157439]
[1722727211537,0.003,60765.0,60764.0,0.02]
[1722727211741,0.001,60765.0,60764.0,0.02157439]
[1722727211945,0.001,60765.0,60764.0,0.02]
[1722727212168,0.09873,60772.0,60767.0,0.02]
[1722727212382,0.09873,60772.0,60771.0,0.01]
[1722727212585,0.098727,60774.0,60773.0,0.01]
[1722727212761,0.197449,60776.0,60775.0,0.01]
[1722727212963,0.098729,60773.0,60767.0,0.02]
[1722727213187,0.1759,60782.0,60768.0,0.00157439]
[1722727213469,0.098742,60764.0,60763.0,0.02]
[1722727213881,0.1759,60775.0,60757.0,0.02]
[1722727214117,0.18875089,60774.0,60759.0,0.02]
[1722727214315,0.18875089,60774.0,60755.0,0.1]
[1722727214316,0.098743,60764.0,60763.0,0.01]
[1722727214783,0.098747,60761.0,60760.0,0.02]
[1722727214988,0.296242,60761.0,60760.0,0.02]
[1722727215187,0.22330418,60764.0,60751.0,0.08291805]
[1722727215188,0.02581918,60764.0,60763.0,0.01]
[1722727215605,0.02581918,60764.0,60760.0,0.02]
[1722727215804,0.02581918,60764.0,60751.0,0.08291805]
[1722727215805,0.02581918,60764.0,60763.0,0.01]
[1722727216204,0.12456118,60764.0,60762.0,0.01]
[1722727216410,0.12456118,60764.0,60760.0,0.02]
[1722727216558,0.12456118,60764.0,60762.0,0.01]
[1722727217032,0.12456118,60764.0,60760.0,0.01]
[1722727217033,0.098744,60763.0,60760.0,0.01]
[1722727217201,0.098752,60758.0,60757.0,0.01]
[1722727217403,0.098747,60761.0,60760.0,0.01]
[1722727217611,0.02581918,60764.0,60763.0,0.01]
[1722727217978,0.02581918,60764.0,60762.0,0.01]
[1722727217979,0.02581918,60764.0,60760.0,0.01]
[1722727218189,0.02581918,60764.0,60757.0,0.01]
[1722727218190,0.098749,60760.0,60757.0,0.01]
[1722727218398,0.02581918,60764.0,60760.0,0.02]
[1722727218598,0.098747,60762.0,60759.0,0.01]
[1722727218821,0.098747,60762.0,60756.0,0.02]
[1722727219393,0.098747,60761.0,60757.0,0.004]
[1722727219560,0.098747,60761.0,60757.0,0.024]
[1722727219770,0.098749,60760.0,60759.0,0.002]
[1722727219972,0.098747,60761.0,60759.0,0.02]
[1722727220190,0.098747,60761.0,60759.0,0.01]
[1722727220329,0.098747,60761.0,60757.0,0.024]
[1722727220530,0.197492,60762.0,60757.0,0.004]
[1722727220779,0.296244,60761.0,60756.0,0.02]
[1722727220975,0.098749,60760.0,60756.0,0.022]
[1722727221177,0.16575089,60759.0,60756.0,0.002]
[1722727221383,0.296262,60757.0,60756.0,0.002]
[1722727221591,0.197514,60755.0,60750.0,0.01]
[1722727221791,0.1416,60767.0,60759.0,0.01]
[1722727222217,0.16575089,60766.0,60760.0,0.01]
[1722727222440,0.16575089,60766.0,60760.0,0.08291805]
[1722727222441,0.02581871,60766.0,60760.0,0.08291805]
[1722727222675,0.02581871,60766.0,60748.0,0.08291805]
[1722727222676,0.098762,60752.0,60748.0,0.08291805]
[1722727222907,0.16575089,60765.0,60759.0,0.005]
[1722727223140,0.098758,60755.0,60750.0,0.02]
[1722727223389,0.16575089,60765.0,60749.0,0.00157439]
[1722727223644,0.098757,60755.0,60754.0,0.01]
[1722727223866,0.197511,60757.0,60750.0,0.02]
[1722727223867,0.098761,60753.0,60750.0,0.02]
[1722727224096,0.098761,60753.0,60752.0,0.02]
[1722727224362,0.098759,60754.0,60752.0,0.02]
[1722727224589,0.098756,60756.0,60748.0,0.08291805]
[1722727224853,0.098755,60757.0,60750.0,0.02]
[1722727225068,0.098755,60757.0,60749.0,0.001]
[1722727225069,0.16575089,60764.0,60753.0,0.02]
[1722727225321,0.098755,60757.0,60756.0,0.01]
[1722727225600,0.197504,60759.0,60753.0,0.01]
[1722727225601,0.098751,60759.0,60758.0,0.01]
[1722727225855,0.197486,60764.0,60754.0,0.02]
[1722727226119,0.2759,60773.0,60749.0,0.00254744]
[1722727226120,0.197495,60761.0,60749.0,0.16729833]
[1722727226361,0.16575089,60768.0,60752.0,0.007]
[1722727226572,0.197516,60755.0,60748.0,0.00157439]
[1722727226770,0.1759,60766.0,60742.0,0.239877]
[1722727226771,0.098759,60754.0,60742.0,0.239877]
[1722727226986,0.098759,60754.0,60746.0,0.08291805]
[1722727227192,0.098756,60756.0,60748.0,0.002]
[1722727227408,0.098754,60757.0,60748.0,0.002]
[1722727227616,0.197496,60761.0,60746.0,0.10291805]
[1722727227617,0.098757,60755.0,60746.0,0.10291805]
[1722727227784,0.197508,60757.0,60747.0,0.02]
[1722727227994,0.197508,60757.0,60746.0,0.08291805]
[1722727228194,0.199498,60761.0,60754.0,0.02]
[1722727228195,0.098755,60756.0,60754.0,0.02]
[1722727228444,0.002,60761.0,60754.0,0.02]
[1722727228656,0.002,60761.0,60757.0,0.02]
[1722727228827,0.002,60761.0,60752.0,0.02]
[1722727229028,0.002,60761.0,60754.0,0.02]
[1722727229029,0.098749,60760.0,60754.0,0.02]
[1722727229240,0.098749,60760.0,60757.0,0.02]
[1722727230251,0.098749,60760.0,60758.0,0.02]
[1722727230454,0.002,60761.0,60760.0,0.02]
[1722727231090,0.098737,60768.0,60767.0,0.01]
[1722727231221,0.19747,60769.0,60758.0,0.02]
[1722727231401,0.02581841,60761.0,60757.0,0.02]
[1722727231605,0.02581841,60761.0,60752.0,0.098761]
[1722727231606,0.02581841,60761.0,60760.0,0.02]
[1722727231850,0.19747,60769.0,60759.0,0.02]
[1722727231851,0.01224309,60760.0,60759.0,0.02]
[1722727232050,0.098738,60767.0,60763.0,0.02]
[1722727232264,0.197465,60770.0,60769.0,0.01]
[1722727232469,0.197465,60770.0,60764.0,0.01]
[1722727232470,0.197465,60770.0,60765.0,0.01]
[1722727232860,0.520944,60777.0,60770.0,0.01]
[1722727232861,0.098731,60771.0,60770.0,0.01]
[1722727233237,0.197444,60777.0,60772.0,0.01]
[1722727233238,0.098728,60773.0,60772.0,0.01]
[1722727234272,0.098729,60772.0,60768.0,0.02]
[1722727234480,0.098729,60772.0,60771.0,0.01]
[1722727234679,0.098735,60769.0,60765.0,0.00157439]
[1722727234827,0.098735,60769.0,60763.0,0.04928729]
[1722727235446,0.098743,60764.0,60759.0,0.000913]
[1722727235643,0.098743,60764.0,60762.0,0.00157439]
[1722727235885,0.16575089,60771.0,60759.0,0.000913]
[1722727236084,0.098743,60764.0,60763.0,0.011]
[1722727236284,0.098745,60762.0,60761.0,0.01]
[1722727236486,0.098745,60762.0,60760.0,0.02]
[1722727236888,0.296227,60764.0,60763.0,0.01]
[1722727237061,0.296227,60764.0,60763.0,0.011]
[1722727237062,0.098742,60764.0,60763.0,0.011]
[1722727237230,0.100742,60764.0,60763.0,0.011]
[1722727237420,0.100742,60764.0,60763.0,0.01]
[1722727238084,0.098749,60760.0,60759.0,0.000913]
[1722727238745,0.098748,60761.0,60759.0,0.000913]
[1722727238954,0.197492,60762.0,60761.0,0.01]
[1722727238955,0.296239,60762.0,60761.0,0.01]
[1722727239109,0.098747,60762.0,60761.0,0.01]
[1722727239714,0.098745,60763.0,60762.0,0.01]
[1722727239924,0.098749,60760.0,60759.0,0.000913]
[1722727240125,0.001,60762.0,60759.0,0.000913]
[1722727240354,0.098747,60762.0,60759.0,0.000913]
[1722727240523,0.098747,60761.0,60759.0,0.000913]
[1722727240938,0.197485,60764.0,60759.0,0.000913]
[1722727241137,0.002,60763.0,60762.0,0.02]
[1722727241521,0.296184,60773.0,60772.0,0.01]
[1722727241723,0.197461,60772.0,60761.0,0.02157439]
[1722727241975,0.1162,60774.0,60761.0,0.02157439]
[1722727241976,0.197471,60769.0,60761.0,0.02]
[1722727242123,0.197471,60769.0,60767.0,0.01]
[1722727242124,0.11044752,60768.0,60767.0,0.01]
[1722727242343,0.01171152,60768.0,60767.0,0.01]
[1722727242543,0.197461,60772.0,60762.0,0.02]
[1722727242745,0.098736,60768.0,60767.0,0.01]
[1722727242948,0.098737,60767.0,60764.0,0.02]
[1722727243155,0.01169643,60766.0,60762.0,0.02]
[1722727243375,0.002,60763.0,60762.0,0.02]
[1722727243575,0.01367379,60763.0,60762.0,0.02]
[1722727243952,0.01167379,60763.0,60762.0,0.02]
[1722727244329,0.004,60767.0,60766.0,0.01]
[1722727244727,0.01570398,60767.0,60766.0,0.01]
[1722727244947,0.004,60767.0,60766.0,0.01]
[1722727245352,0.01570398,60767.0,60766.0,0.01]
[1722727245566,0.01370398,60767.0,60762.0,0.02]
[1722727245777,0.19748,60766.0,60762.0,0.01]
[1722727245978,0.098744,60764.0,60762.0,0.01]
[1722727246201,0.01171158,60763.0,60761.0,0.01]
[1722727246617,0.01171158,60763.0,60762.0,0.01]
[1722727246618,0.098744,60763.0,60762.0,0.01]
[1722727247198,0.12456186,60763.0,60762.0,0.01]
[1722727247399,0.098745,60762.0,60761.0,0.01]
[1722727247600,0.02581786,60763.0,60762.0,0.01]
[1722727247800,0.02781786,60763.0,60762.0,0.01]
[1722727247977,0.02981786,60763.0,60762.0,0.02]
[1722727248160,0.02781786,60763.0,60762.0,0.02]
[1722727248563,0.002,60763.0,60762.0,0.02]
[1722727249843,0.002,60763.0,60759.0,0.000913]
[1722727250044,0.002,60763.0,60762.0,0.246645]
[1722727250216,0.098724,60776.0,60770.0,0.02]
[1722727250419,0.098723,60776.0,60770.0,0.02]
[1722727250587,0.296175,60775.0,60770.0,0.02]
[1722727250783,0.098726,60774.0,60770.0,0.02]
[1722727251252,0.19745,60775.0,60766.0,0.02]
[1722727251456,0.098728,60773.0,60770.0,0.02]
[1722727252061,0.098728,60773.0,60770.0,0.021]
[1722727252262,0.098728,60773.0,60772.0,0.01]
[1722727252645,0.002,60774.0,60773.0,0.01]
[1722727253025,0.100726,60774.0,60773.0,0.01]
[1722727253243,0.098726,60774.0,60773.0,0.01]
[1722727253470,0.098728,60773.0,60768.0,0.02]
[1722727253677,0.100728,60773.0,60770.0,0.001]
[1722727254011,0.102728,60773.0,60770.0,0.002]
[1722727254208,0.098728,60773.0,60770.0,0.02]
[1722727254414,0.098728,60773.0,60772.0,0.01]
[1722727254619,0.098728,60773.0,60763.0,0.00157439]
[1722727255017,0.098728,60773.0,60772.0,0.01]
[1722727255444,0.100728,60773.0,60770.0,0.001]
[1722727255599,0.02781531,60773.0,60772.0,0.01]
[1722727256115,0.12654331,60773.0,60770.0,0.021]
[1722727256333,0.12654331,60773.0,60770.0,0.001]
[1722727256535,0.12654331,60773.0,60770.0,0.021]
[1722727256732,0.098726,60775.0,60771.0,0.00157439]
[1722727256936,0.098727,60774.0,60773.0,0.01]
[1722727257135,0.197447,60776.0,60770.0,0.01]
[1722727257136,0.098724,60776.0,60775.0,0.01]
[1722727257559,0.098721,60778.0,60777.0,0.01]
[1722727257758,0.29616,60778.0,60777.0,0.01]
[1722727258186,0.197443,60777.0,60773.0,0.011]
[1722727258388,0.100723,60776.0,60775.0,0.001]
[1722727258593,0.098724,60775.0,60774.0,0.01]
[1722727258789,0.002,60776.0,60774.0,0.01]
[1722727258995,0.100723,60776.0,60775.0,0.01]
[1722727260225,0.098724,60775.0,60774.0,0.01]
[1722727260382,0.100723,60776.0,60774.0,0.01]
[1722727260566,0.098723,60776.0,60775.0,0.01]
[1722727260763,0.04931465,60783.0,60782.0,0.098713]
[1722727260983,0.12,60790.0,60781.0,0.02]
[1722727261162,0.12,60790.0,60785.0,0.01]
[1722727261374,0.098702,60789.0,60788.0,0.01]
[1722727261572,0.098702,60789.0,60787.0,0.01]
[1722727261573,0.098703,60788.0,60787.0,0.01]
[1722727262051,0.098703,60788.0,60786.0,0.01]
[1722727262269,0.098703,60788.0,60787.0,0.01]
[1722727262698,0.098705,60787.0,60786.0,0.01]
[1722727262900,0.098705,60787.0,60783.0,0.02]
[1722727263075,0.098705,60787.0,60785.0,0.01]
[1722727263687,0.098705,60787.0,60783.0,0.01]
[1722727263688,0.098705,60787.0,60784.0,0.01]
[1722727263890,0.098705,60787.0,60786.0,0.01]
[1722727264460,0.112705,60787.0,60786.0,0.01]
[1722727264665,0.098718,60779.0,60778.0,0.00157439]
[1722727265036,0.35565089,60787.0,60783.0,0.01]
[1722727265037,0.19742,60784.0,60783.0,0.01]
[1722727265312,0.1899,60787.0,60786.0,0.01]
[1722727265313,0.014,60787.0,60786.0,0.01]
[1722727265530,0.098704,60788.0,60786.0,0.01]
[1722727265816,0.1974,60791.0,60789.0,0.01]
[1722727266024,0.08291805,60790.0,60786.0,0.001]
[1722727266270,0.493525,60787.0,60786.0,0.001]
[1722727266476,0.65927589,60787.0,60786.0,0.001]
[1722727266623,0.68227589,60787.0,60786.0,0.001]
[1722727267231,0.82297589,60787.0,60786.0,0.001]
[1722727267615,0.82297589,60787.0,60784.0,0.01]
[1722727267865,0.098713,60782.0,60781.0,0.01]
[1722727268078,0.296139,60782.0,60781.0,0.01]
[1722727268622,0.098712,60783.0,60781.0,0.01]
[1722727268823,0.19742,60784.0,60783.0,0.01]
[1722727269029,0.296119,60786.0,60785.0,0.01]
[1722727269256,0.013,60787.0,60785.0,0.01]
[1722727269483,0.013,60787.0,60786.0,0.01]
[1722727269943,0.03880835,60787.0,60785.0,0.01]
[1722727270151,0.03880835,60787.0,60786.0,0.31635089]
[1722727270358,0.03880835,60787.0,60786.0,0.99280094]
[1722727270359,0.013,60787.0,60786.0,0.99280094]
[1722727270565,0.013,60787.0,60786.0,1.29010222]
[1722727270772,0.013,60787.0,60786.0,0.49623625]
[1722727270995,0.013,60787.0,60786.0,0.41635089]
[1722727271211,0.013,60787.0,60786.0,0.39635089]
[1722727271384,0.027,60787.0,60786.0,0.1306]
[1722727271606,0.014,60787.0,60786.0,0.1506]
[1722727271817,0.014,60787.0,60783.0,0.02]
[1722727271986,0.00749853,60787.0,60783.0,0.02]
[1722727272187,0.10620353,60787.0,60786.0,0.003]
[1722727272589,0.10620353,60787.0,60786.0,0.005]
[1722727272920,0.00749853,60787.0,60786.0,0.02]
[1722727273130,0.00749853,60787.0,60785.0,0.02]
[1722727273344,0.09871,60784.0,60783.0,0.001]
[1722727273487,0.09871,60784.0,60781.0,0.02]
[1722727273741,0.10622538,60784.0,60783.0,0.01]
[1722727274109,0.00751538,60784.0,60783.0,0.01]
[1722727274308,0.00751538,60784.0,60783.0,0.02]
[1722727274509,0.00751538,60784.0,60783.0,0.01]
[1722727274709,0.098713,60782.0,60781.0,0.013]
[1722727274908,0.296139,60782.0,60781.0,0.023]
[1722727275112,0.1061178,60782.0,60781.0,0.023]
[1722727275330,0.1061178,60782.0,60781.0,0.02]
[1722727275527,0.0074048,60782.0,60781.0,0.02]
[1722727275728,0.09871,60784.0,60781.0,0.02]
[1722727275930,0.09871,60784.0,60783.0,0.02]
[1722727276557,0.197412,60787.0,60783.0,0.02]
[1722727276558,0.098709,60785.0,60784.0,0.01]
[1722727277378,0.1407,60791.0,60784.0,0.01]
[1722727277578,0.098708,60785.0,60784.0,0.01]
[1722727277937,0.098708,60785.0,60784.0,0.012]
[1722727279168,0.296125,60785.0,60784.0,0.012]
[1722727279409,0.296125,60785.0,60784.0,0.005]
[1722727279759,0.493542,60785.0,60784.0,0.005]
[1722727280127,0.1225,60795.0,60784.0,0.005]
[1722727280350,0.098705,60787.0,60786.0,0.01]
[1722727280753,0.493542,60785.0,60784.0,0.004]
[1722727280953,0.79999289,60785.0,60784.0,0.004]
[1722727281158,0.79999289,60785.0,60784.0,0.003]
[1722727281159,1.02040989,60785.0,60784.0,0.003]
[1722727281397,1.02040989,60785.0,60784.0,0.004]
[1722727281648,1.04622049,60785.0,60784.0,0.004]
[1722727281858,1.04622049,60785.0,60784.0,0.001]
[1722727282048,1.25463749,60785.0,60784.0,0.002]
[1722727282247,1.40336692,60785.0,60784.0,0.002]
[1722727282667,1.45260112,60785.0,60784.0,0.002]
[1722727282878,1.40336692,60785.0,60784.0,0.001]
[1722727283291,1.79311812,60785.0,60784.0,0.002]
[1722727283507,1.89311812,60785.0,60784.0,0.002]
[1722727283713,1.88111812,60785.0,60784.0,0.001]
[1722727283865,1.68370112,60785.0,60784.0,0.001]
[1722727284066,1.69570112,60785.0,60784.0,0.002]
[1722727284653,1.69572672,60785.0,60784.0,0.002]
[1722727284850,0.38392483,60785.0,60784.0,0.002]
[1722727285059,0.51068649,60785.0,60784.0,0.002]
[1722727285263,0.9882867,60785.0,60784.0,0.002]
[1722727285513,1.09276338,60785.0,60784.0,0.002]
[1722727285711,1.46407009,60785.0,60784.0,0.002]
[1722727285914,1.48869999,60785.0,60784.0,0.002]